fUSD/lending_fUSD_20240427
["ID","MTS","AMOUNT","RATE_DAILY","PERIOD"]
[323727889,1714207832582,-1819.66,0.00011041,2]
[323727891,1714207832593,-836.24,0.00011041,2]
[323727893,1714207832605,-2203.435,0.00011071,2]
[323727895,1714207832616,-150.0,0.00011163,2]
[323727898,1714207832627,-155.47681499,0.00011169,2]
[323727900,1714207832638,-156.05441281,0.00011169,2]
[323727902,1714207832650,-11365.95361827,0.0001117,2]
[323727905,1714207832664,-4147.36848739,0.0001117,2]
[323727908,1714207832688,-441.23700119,0.0001117,2]
[323727910,1714207832701,-633.16573653,0.0001117,2]
[323727913,1714207832715,-523.430005,0.0001117,2]
[323727915,1714207832728,-8599.99745466,0.0001117,2]
[323727917,1714207832741,-648.56859254,0.0001117,2]
[323727919,1714207832757,-1550.0,0.0001117,2]
[323727921,1714207832771,-2657.2692505,0.0001117,2]
[323727922,1714207832804,-6540.09729539,0.0001117,2]
[323727923,1714207832819,-1282.29522389,0.0001117,2]
[323727924,1714207832832,-153.9249,0.0001117,2]
[323727925,1714207832844,-1000.0,0.0001117,2]
[323727926,1714207832855,-412.9436,0.0001117,2]
[323727927,1714207832867,-1644.64850222,0.0001117,2]
[323727928,1714207832947,-567.75439566,0.0001117,2]
[323727929,1714207832961,-4069.02801231,0.0001117,2]
[323727964,1714207838329,-6398.85046884,0.0001117,2]
[323727968,1714207838341,-237.78962097,0.0001117,2]
[323727969,1714207838650,-611.8799,0.00011171,2]
[323727970,1714207838663,-179.60047903,0.00011171,2]
[323727971,1714207838674,-741.3170906,0.00011171,2]
[323727972,1714207838685,-1000.00663,0.00011171,2]
[323727974,1714207838696,-995.94,0.00011171,2]
[323727979,1714207838753,-7777.74976624,0.00011171,2]
[323727980,1714207838768,-19840.1776307,0.00011171,2]
[323727985,1714207840217,-1344.33106011,0.00011171,2]
[323727986,1714207840229,-6432.8,0.00011171,2]
[323727987,1714207840441,-424.5191321,0.00011171,2]
[323727988,1714207840498,-778.93087633,0.00011171,2]
[323727989,1714207840558,-1341.48264943,0.00011171,2]
[323728000,1714207843534,-639.0,0.00010469,2]
[323728001,1714207843545,-39263.94078546,0.00011171,2]
[323728002,1714207843556,-183.85475086,0.00011179,2]
[323728003,1714207843566,-500.0,0.00011267,2]
[323728004,1714207843576,-500.0,0.00011267,2]
[323728005,1714207843586,-518.09,0.00011267,2]
[323728006,1714207843595,-500.0,0.00011267,2]
[323728007,1714207843606,-500.0,0.00011267,2]
[323728008,1714207843616,-1455.46,0.00011267,2]
[323728009,1714207843626,-926.53,0.00011267,2]
[323728010,1714207843637,-500.0,0.00011267,2]
[323728011,1714207843647,-500.0,0.00011267,2]
[323728013,1714207843658,-1835.86,0.00011267,2]
[323728014,1714207843668,-500.0,0.00011267,2]
[323728015,1714207843678,-597.12,0.00011267,2]
[323728016,1714207843688,-500.0,0.00011267,2]
[323728017,1714207843697,-500.0,0.00011267,2]
[323728019,1714207843706,-500.0,0.00011267,2]
[323728020,1714207843716,-500.0,0.00011267,2]
[323728021,1714207843725,-500.0,0.00011267,2]
[323728022,1714207843735,-581.79911738,0.00011267,2]
[323728023,1714207843745,-1707.32,0.00011267,2]
[323728024,1714207843754,-1942.46,0.00011267,2]
[323728025,1714207843763,-1350.36,0.00011267,2]
[323728026,1714207843774,-500.0,0.00011267,2]
[323728027,1714207843784,-509.51,0.00011267,2]
[323728028,1714207843793,-500.0,0.00011267,2]
[323728029,1714207843803,-6906.49,0.00011267,2]
[323728030,1714207843812,-500.0,0.00011267,2]
[323728031,1714207843822,-500.0,0.00011267,2]
[323728032,1714207843832,-500.0,0.00011267,2]
[323728033,1714207843844,-500.0,0.00011267,2]
[323728034,1714207843853,-871.16,0.00011267,2]
[323728035,1714207843863,-179.19,0.00011267,2]
[323728036,1714207843873,-500.0,0.00011267,2]
[323728037,1714207843882,-500.0,0.00011268,2]
[323728038,1714207843892,-500.0,0.00011268,2]
[323728039,1714207843901,-569.81320775,0.00011268,2]
[323728040,1714207843912,-500.0,0.00011268,2]
[323728041,1714207843921,-500.0,0.00011268,2]
[323728042,1714207843931,-500.0,0.00011268,2]
[323728043,1714207843940,-500.0,0.00011268,2]
[323728044,1714207843949,-500.0,0.00011268,2]
[323728045,1714207843958,-500.0,0.00011268,2]
[323728046,1714207843968,-500.0,0.00011268,2]
[323728047,1714207843977,-500.0,0.00011268,2]
[323728048,1714207843986,-348.90282332,0.00011268,2]
[323728049,1714207843996,-500.0,0.00011268,2]
[323728050,1714207844006,-500.0,0.00011268,2]
[323728051,1714207844016,-500.0,0.00011268,2]
[323728052,1714207844026,-500.0,0.00011268,2]
[323728053,1714207844035,-500.0,0.00011268,2]
[323728054,1714207844044,-500.0,0.00011268,2]
[323728055,1714207844054,-485.28690856,0.00011268,2]
[323728056,1714207844063,-500.0,0.00011268,2]
[323728057,1714207844073,-500.0,0.00011268,2]
[323728058,1714207844083,-400.0,0.00011268,2]
[323728059,1714207844092,-500.0,0.00011268,2]
[323728060,1714207844101,-193.02552242,0.00011268,2]
[323728061,1714207844111,-500.0,0.00011268,2]
[323728062,1714207844120,-500.0,0.00011268,2]
[323728063,1714207844130,-500.0,0.00011268,2]
[323728064,1714207844139,-500.0,0.00011268,2]
[323728065,1714207844148,-500.0,0.00011268,2]
[323728066,1714207844158,-500.0,0.00011268,2]
[323728067,1714207844167,-500.0,0.00011268,2]
[323728068,1714207844176,-500.0,0.00011268,2]
[323728069,1714207844186,-500.0,0.00011268,2]
[323728070,1714207844195,-500.0,0.00011268,2]
[323728071,1714207844204,-500.0,0.00011268,2]
[323728072,1714207844214,-500.0,0.00011268,2]
[323728073,1714207844223,-448.11307762,0.00011268,2]
[323728074,1714207844232,-500.0,0.00011268,2]
[323728075,1714207844241,-500.0,0.00011268,2]
[323728076,1714207844250,-500.0,0.00011268,2]
[323728077,1714207844259,-507.77792814,0.00011268,2]
[323728078,1714207844270,-500.0,0.00011268,2]
[323728079,1714207844278,-523.83032228,0.00011268,2]
[323728080,1714207844287,-625.47163768,0.00011268,2]
[323728081,1714207844297,-500.0,0.00011268,2]
[323728082,1714207844306,-507.55782123,0.00011268,2]
[323728083,1714207844316,-522.41403953,0.00011268,2]
[323728084,1714207844326,-570.68601603,0.00011268,2]
[323728085,1714207844335,-500.0,0.00011268,2]
[323728086,1714207844344,-504.67278576,0.00011268,2]
[323728087,1714207844353,-500.0,0.00011268,2]
[323728088,1714207844363,-500.0,0.00011268,2]
[323728089,1714207844373,-500.0,0.00011268,2]
[323728090,1714207844382,-500.0,0.00011268,2]
[323728091,1714207844391,-828.82,0.00011268,2]
[323728092,1714207844401,-500.0,0.00011268,2]
[323728093,1714207844410,-500.0,0.00011268,2]
[323728094,1714207844419,-504.10992078,0.00011268,2]
[323728095,1714207844428,-500.0,0.00011268,2]
[323728096,1714207844438,-500.0,0.00011268,2]
[323728097,1714207844447,-502.25621583,0.00011268,2]
[323728098,1714207844458,-603.46,0.00011268,2]
[323728099,1714207844467,-500.0,0.00011268,2]
[323728100,1714207844476,-500.0,0.00011268,2]
[323728101,1714207844487,-500.0,0.00011268,2]
[323728102,1714207844498,-536.12,0.00011268,2]
[323728103,1714207844508,-500.0,0.00011268,2]
[323728104,1714207844517,-500.0,0.00011268,2]
[323728105,1714207844527,-402.76819527,0.00011268,2]
[323728106,1714207844537,-503.81185875,0.00011268,2]
[323728107,1714207844547,-500.0,0.00011268,2]
[323728108,1714207844557,-1513.94,0.00011268,2]
[323728109,1714207844567,-500.0,0.00011268,2]
[323728110,1714207844579,-500.0,0.00011268,2]
[323728111,1714207844588,-500.0,0.00011268,2]
[323728112,1714207844599,-500.0,0.00011268,2]
[323728113,1714207844609,-500.0,0.00011268,2]
[323728114,1714207844619,-500.0,0.00011268,2]
[323728115,1714207844629,-500.0,0.00011268,2]
[323728116,1714207844639,-500.0,0.00011268,2]
[323728117,1714207844650,-500.0,0.00011268,2]
[323728118,1714207844660,-502.06819245,0.00011268,2]
[323728119,1714207844670,-515.21499329,0.00011268,2]
[323728120,1714207844679,-500.0,0.00011268,2]
[323728121,1714207844690,-500.0,0.00011268,2]
[323728122,1714207844700,-500.0,0.00011268,2]
[323728123,1714207844710,-500.0,0.00011268,2]
[323728124,1714207844719,-500.0,0.00011268,2]
[323728125,1714207844729,-500.0,0.00011268,2]
[323728126,1714207844738,-500.0,0.00011268,2]
[323728127,1714207844748,-500.0,0.00011268,2]
[323728128,1714207844758,-500.0,0.00011268,2]
[323728129,1714207844768,-237.08384915,0.00011268,2]
[323728130,1714207844778,-500.0,0.00011268,2]
[323728131,1714207844787,-1657.19,0.00011268,2]
[323728132,1714207844797,-500.0,0.00011268,2]
[323728133,1714207844806,-501.18316437,0.00011268,2]
[323728134,1714207844815,-500.0,0.00011268,2]
[323728135,1714207844825,-500.0,0.00011268,2]
[323728136,1714207844838,-500.0,0.00011268,2]
[323728137,1714207844847,-500.0,0.00011268,2]
[323728138,1714207844857,-512.12446417,0.00011268,2]
[323728139,1714207844868,-150.0,0.00011268,2]
[323728140,1714207844879,-502.35460997,0.00011268,2]
[323728141,1714207844889,-500.0,0.00011268,2]
[323728142,1714207844899,-500.0,0.00011268,2]
[323728143,1714207844909,-500.0,0.00011268,2]
[323728144,1714207844919,-500.0,0.00011268,2]
[323728145,1714207844930,-503.5258692,0.00011268,2]
[323728146,1714207844940,-500.0,0.00011268,2]
[323728147,1714207844950,-500.0,0.00011268,2]
[323728148,1714207844962,-500.0,0.00011268,2]
[323728149,1714207844971,-500.0,0.00011268,2]
[323728150,1714207844982,-500.0,0.00011268,2]
[323728151,1714207844993,-500.0,0.00011268,2]
[323728152,1714207845004,-500.0,0.00011268,2]
[323728153,1714207845014,-500.0,0.00011268,2]
[323728154,1714207845025,-500.0,0.00011268,2]
[323728155,1714207845035,-500.0,0.00011268,2]
[323728156,1714207845046,-500.0,0.00011268,2]
[323728157,1714207845056,-500.0,0.00011268,2]
[323728158,1714207845066,-500.0,0.00011268,2]
[323728159,1714207845077,-500.0,0.00011268,2]
[323728160,1714207845086,-500.0,0.00011268,2]
[323728161,1714207845096,-500.0,0.00011268,2]
[323728162,1714207845106,-500.0,0.00011268,2]
[323728163,1714207845117,-500.0,0.00011268,2]
[323728164,1714207845128,-500.0,0.00011268,2]
[323728165,1714207845138,-500.0,0.00011268,2]
[323728166,1714207845148,-500.0,0.00011268,2]
[323728167,1714207845158,-500.0,0.00011268,2]
[323728168,1714207845168,-906.38,0.00011268,2]
[323728169,1714207845178,-500.0,0.00011268,2]
[323728170,1714207845188,-505.48313189,0.00011268,2]
[323728171,1714207845199,-500.0,0.00011268,2]
[323728172,1714207845209,-500.0,0.00011268,2]
[323728173,1714207845220,-500.0,0.00011268,2]
[323728174,1714207845231,-500.0,0.00011268,2]
[323728175,1714207845242,-500.0,0.00011268,2]
[323728176,1714207845252,-497.61760632,0.00011268,2]
[323728177,1714207845262,-500.0,0.00011268,2]
[323728178,1714207845273,-500.0,0.00011268,2]
[323728179,1714207845283,-500.0,0.00011268,2]
[323728180,1714207845293,-500.0,0.00011268,2]
[323728181,1714207845302,-500.0,0.00011268,2]
[323728182,1714207845314,-500.0,0.00011268,2]
[323728183,1714207845334,-500.0,0.00011268,2]
[323728184,1714207845350,-500.0,0.00011268,2]
[323728185,1714207845359,-500.0,0.00011268,2]
[323728186,1714207845370,-500.0,0.00011268,2]
[323728187,1714207845380,-500.0,0.00011268,2]
[323728188,1714207845390,-500.0,0.00011268,2]
[323728189,1714207845400,-500.0,0.00011268,2]
[323728190,1714207845410,-525.6,0.00011268,2]
[323728191,1714207845419,-500.0,0.00011268,2]
[323728192,1714207845429,-500.0,0.00011268,2]
[323728193,1714207845630,-500.0,0.00011268,2]
[323728194,1714207845642,-500.0,0.00011268,2]
[323728195,1714207845653,-500.0,0.00011268,2]
[323728196,1714207845663,-500.0,0.00011268,2]
[323728197,1714207845673,-500.0,0.00011268,2]
[323728198,1714207845683,-500.0,0.00011268,2]
[323728199,1714207845693,-622.63,0.00011268,2]
[323728200,1714207845703,-500.0,0.00011268,2]
[323728201,1714207845713,-500.0,0.00011268,2]
[323728202,1714207845722,-500.0,0.00011268,2]
[323728203,1714207845732,-500.0,0.00011268,2]
[323728204,1714207845742,-500.0,0.00011268,2]
[323728205,1714207845752,-1030.13,0.00011268,2]
[323728206,1714207845761,-500.0,0.00011268,2]
[323728207,1714207845772,-500.0,0.00011268,2]
[323728208,1714207845782,-500.0,0.00011268,2]
[323728209,1714207845791,-500.0,0.00011268,2]
[323728210,1714207845801,-500.0,0.00011268,2]
[323728211,1714207845811,-500.0,0.00011268,2]
[323728212,1714207845821,-500.0,0.00011268,2]
[323728213,1714207845832,-500.0,0.00011268,2]
[323728214,1714207845845,-500.0,0.00011268,2]
[323728215,1714207845854,-500.0,0.00011268,2]
[323728216,1714207845864,-500.0,0.00011268,2]
[323728218,1714207845874,-501.53142319,0.00011268,2]
[323728219,1714207845884,-500.0,0.00011268,2]
[323728220,1714207845894,-500.0,0.00011268,2]
[323728221,1714207845903,-500.0,0.00011268,2]
[323728222,1714207845914,-500.0,0.00011268,2]
[323728223,1714207845922,-500.0,0.00011268,2]
[323728224,1714207845932,-500.0,0.00011268,2]
[323728225,1714207845941,-500.0,0.00011268,2]
[323728226,1714207845951,-502.88146171,0.00011268,2]
[323728227,1714207845960,-500.0,0.00011268,2]
[323728228,1714207845969,-500.0,0.00011268,2]
[323728229,1714207845978,-500.0,0.00011268,2]
[323728231,1714207845988,-500.0,0.00011268,2]
[323728232,1714207845998,-500.0,0.00011268,2]
[323728234,1714207846007,-500.0,0.00011268,2]
[323728235,1714207846016,-500.0,0.00011268,2]
[323728237,1714207846026,-509.04350508,0.00011268,2]
[323728239,1714207846036,-500.0,0.00011268,2]
[323728241,1714207846046,-500.0,0.00011268,2]
[323728243,1714207846056,-500.0,0.00011268,2]
[323728244,1714207846065,-500.0,0.00011268,2]
[323728246,1714207846075,-500.0,0.00011268,2]
[323728248,1714207846085,-500.0,0.00011268,2]
[323728250,1714207846094,-528.23,0.00011268,2]
[323728251,1714207846104,-500.0,0.00011268,2]
[323728252,1714207846113,-500.0,0.00011268,2]
[323728253,1714207846123,-500.0,0.00011268,2]
[323728254,1714207846132,-500.0,0.00011268,2]
[323728255,1714207846141,-504.36578971,0.00011268,2]
[323728256,1714207846151,-500.0,0.00011268,2]
[323728257,1714207846160,-500.0,0.00011268,2]
[323728258,1714207846169,-500.0,0.00011268,2]
[323728259,1714207846178,-500.0,0.00011268,2]
[323728260,1714207846187,-500.0,0.00011268,2]
[323728261,1714207846196,-644.29,0.00011268,2]
[323728262,1714207846206,-500.0,0.00011268,2]
[323728263,1714207846215,-500.0,0.00011268,2]
[323728264,1714207846224,-500.0,0.00011268,2]
[323728265,1714207846233,-500.0,0.00011268,2]
[323728266,1714207846242,-500.0,0.00011268,2]
[323728267,1714207846251,-500.0,0.00011268,2]
[323728268,1714207846260,-500.0,0.00011268,2]
[323728269,1714207846269,-500.0,0.00011268,2]
[323728270,1714207846279,-500.0,0.00011268,2]
[323728271,1714207846288,-500.0,0.00011268,2]
[323728272,1714207846298,-500.0,0.00011268,2]
[323728273,1714207846307,-500.0,0.00011268,2]
[323728274,1714207846316,-500.0,0.00011268,2]
[323728275,1714207846325,-508.07912387,0.00011268,2]
[323728276,1714207846334,-500.0,0.00011268,2]
[323728277,1714207846344,-500.0,0.00011268,2]
[323728278,1714207846353,-500.0,0.00011268,2]
[323728279,1714207846362,-500.0,0.00011268,2]
[323728280,1714207846371,-622.53,0.00011268,2]
[323728281,1714207846380,-500.0,0.00011268,2]
[323728282,1714207846390,-500.0,0.00011268,2]
[323728283,1714207846399,-500.0,0.00011268,2]
[323728284,1714207846408,-500.0,0.00011268,2]
[323728285,1714207846417,-500.0,0.00011268,2]
[323728286,1714207846427,-585.44,0.00011268,2]
[323728287,1714207846436,-511.773641,0.00011268,2]
[323728288,1714207846445,-500.0,0.00011268,2]
[323728289,1714207846454,-513.26232509,0.00011268,2]
[323728290,1714207846463,-510.23868935,0.00011268,2]
[323728291,1714207846472,-530.5233474,0.00011268,2]
[323728292,1714207846481,-540.75172058,0.00011268,2]
[323728294,1714207846490,-500.0,0.00011268,2]
[323728295,1714207846499,-500.0,0.00011268,2]
[323728297,1714207846508,-500.0,0.00011268,2]
[323728298,1714207846517,-500.0,0.00011268,2]
[323728300,1714207846527,-500.0,0.00011268,2]
[323728301,1714207846536,-500.0,0.00011268,2]
[323728302,1714207846546,-3605.58,0.00011268,2]
[323728303,1714207846555,-500.0,0.00011268,2]
[323728304,1714207846565,-512.95563795,0.00011269,2]
[323728305,1714207846575,-500.0,0.00011269,2]
[323728306,1714207846585,-359.78968865,0.00011269,2]
[323728307,1714207846595,-581.53133256,0.00011269,2]
[323728308,1714207846604,-310.75,0.00011269,2]
[323728309,1714207846613,-524.66192676,0.00011269,2]
[323728310,1714207846623,-505.88173815,0.00011269,2]
[323728311,1714207846633,-500.0,0.00011269,2]
[323728312,1714207846643,-546.23852867,0.00011269,2]
[323728313,1714207846653,-630.20856928,0.00011269,2]
[323728314,1714207846663,-520.48392221,0.00011269,2]
[323728315,1714207846673,-510.64958603,0.00011269,2]
[323728316,1714207846682,-491.3398707,0.00011269,2]
[323728317,1714207846691,-500.0,0.00011269,2]
[323728318,1714207846702,-518.26789817,0.00011269,2]
[323728319,1714207846712,-521.42656485,0.00011269,2]
[323728320,1714207846722,-533.5030653,0.00011269,2]
[323728321,1714207846733,-923.02,0.00011269,2]
[323728322,1714207846743,-500.0,0.00011269,2]
[323728323,1714207846753,-500.0,0.00011269,2]
[323728324,1714207846763,-500.0,0.00011269,2]
[323728325,1714207846774,-500.0,0.00011269,2]
[323728326,1714207846784,-500.0,0.00011269,2]
[323728327,1714207846795,-503.93418103,0.00011269,2]
[323728328,1714207846805,-500.0,0.00011269,2]
[323728329,1714207846814,-506.08395199,0.00011269,2]
[323728330,1714207846824,-500.0,0.00011269,2]
[323728331,1714207846841,-500.0,0.00011269,2]
[323728332,1714207846850,-500.89382024,0.00011269,2]
[323728333,1714207846860,-500.0,0.00011269,2]
[323728334,1714207846871,-505.67120543,0.00011269,2]
[323728335,1714207846881,-810.88,0.00011269,2]
[323728336,1714207846891,-500.0,0.00011269,2]
[323728337,1714207846901,-500.0,0.00011269,2]
[323728338,1714207846914,-500.0,0.00011269,2]
[323728339,1714207846924,-505.91524893,0.00011269,2]
[323728340,1714207846935,-500.0,0.00011269,2]
[323728341,1714207846944,-501.52719434,0.00011269,2]
[323728342,1714207846954,-500.0,0.00011269,2]
[323728343,1714207846964,-150.0,0.00011269,2]
[323728344,1714207846974,-500.0,0.00011269,2]
[323728345,1714207846984,-500.0,0.00011269,2]
[323728346,1714207846994,-632.91,0.00011269,2]
[323728347,1714207847004,-500.0,0.00011269,2]
[323728348,1714207847014,-500.0,0.00011269,2]
[323728349,1714207847026,-500.0,0.00011269,2]
[323728350,1714207847037,-500.0,0.00011269,2]
[323728351,1714207847047,-500.0,0.00011269,2]
[323728352,1714207847058,-500.0,0.00011269,2]
[323728353,1714207847068,-500.0,0.00011269,2]
[323728354,1714207847078,-500.0,0.00011269,2]
[323728355,1714207847087,-500.0,0.00011269,2]
[323728356,1714207847099,-500.0,0.00011269,2]
[323728357,1714207847113,-501.18358575,0.00011269,2]
[323728358,1714207847130,-500.69112059,0.00011269,2]
[323728359,1714207847142,-500.68531552,0.00011269,2]
[323728360,1714207847157,-500.0,0.00011269,2]
[323728361,1714207847167,-506.56233038,0.00011269,2]
[323728362,1714207847176,-500.0,0.00011269,2]
[323728363,1714207847185,-500.0,0.00011269,2]
[323728364,1714207847194,-500.0,0.00011269,2]
[323728365,1714207847204,-501.25226482,0.00011269,2]
[323728366,1714207847213,-500.48023473,0.00011269,2]
[323728367,1714207847222,-500.96509657,0.00011269,2]
[323728368,1714207847231,-500.0,0.00011269,2]
[323728369,1714207847241,-499.99762421,0.00011269,2]
[323728370,1714207847250,-501.12087336,0.00011269,2]
[323728371,1714207847259,-500.0,0.00011269,2]
[323728372,1714207847267,-500.5661073,0.00011269,2]
[323728373,1714207847277,-500.0,0.00011269,2]
[323728374,1714207847286,-502.56055115,0.00011269,2]
[323728375,1714207847295,-522.08902583,0.00011269,2]
[323728376,1714207847305,-500.55295297,0.00011269,2]
[323728377,1714207847315,-500.0,0.00011269,2]
[323728378,1714207847324,-500.0,0.00011269,2]
[323728379,1714207847334,-500.67697798,0.00011269,2]
[323728380,1714207847343,-500.0,0.00011269,2]
[323728381,1714207847353,-500.0,0.00011269,2]
[323728382,1714207847362,-647.05608005,0.00011269,2]
[323728383,1714207847371,-500.0,0.00011269,2]
[323728384,1714207847380,-500.0,0.00011269,2]
[323728385,1714207847389,-500.4407272,0.00011269,2]
[323728386,1714207847399,-500.0,0.00011269,2]
[323728387,1714207847408,-500.0,0.00011269,2]
[323728388,1714207847417,-500.3259722,0.00011269,2]
[323728389,1714207847426,-500.0,0.00011269,2]
[323728390,1714207847436,-500.63346799,0.00011269,2]
[323728391,1714207847446,-501.85440382,0.00011269,2]
[323728392,1714207847455,-501.0757403,0.00011269,2]
[323728393,1714207847464,-500.35548128,0.00011269,2]
[323728394,1714207847474,-500.0,0.00011269,2]
[323728395,1714207847483,-500.0,0.00011269,2]
[323728396,1714207847492,-500.0,0.00011269,2]
[323728397,1714207847502,-276.88780102,0.00011269,2]
[323728398,1714207847512,-501.51962909,0.00011269,2]
[323728399,1714207847523,-500.0,0.00011269,2]
[323728400,1714207847532,-500.0,0.00011269,2]
[323728401,1714207847541,-500.0,0.00011269,2]
[323728402,1714207847551,-500.0,0.00011269,2]
[323728403,1714207847560,-500.0,0.00011269,2]
[323728404,1714207847570,-500.0,0.00011269,2]
[323728405,1714207847579,-500.0,0.00011269,2]
[323728406,1714207847589,-500.0,0.00011269,2]
[323728407,1714207847599,-500.0,0.00011269,2]
[323728408,1714207847608,-500.0,0.00011269,2]
[323728409,1714207847617,-500.0,0.00011269,2]
[323728410,1714207847627,-500.0,0.00011269,2]
[323728411,1714207847636,-500.0,0.00011269,2]
[323728412,1714207847645,-164.70946529,0.00011269,2]
[323728413,1714207847655,-500.0,0.00011269,2]
[323728414,1714207847664,-500.0,0.00011269,2]
[323728415,1714207847674,-500.0,0.00011269,2]
[323728416,1714207847683,-500.0,0.00011269,2]
[323728417,1714207847693,-507.1984282,0.00011269,2]
[323728418,1714207847702,-286.9340518,0.00011269,2]
[323728419,1714207847712,-504.79373273,0.00011269,2]
[323728420,1714207847722,-500.0,0.00011269,2]
[323728421,1714207847732,-469.60117008,0.00011269,2]
[323728422,1714207847741,-538.3440894,0.00011269,2]
[323728423,1714207847751,-500.0,0.00011269,2]
[323728424,1714207847760,-610.68,0.00011269,2]
[323728425,1714207847771,-500.0,0.00011269,2]
[323728426,1714207847780,-500.0,0.00011269,2]
[323728427,1714207847789,-500.0,0.00011269,2]
[323728428,1714207847798,-500.0,0.00011269,2]
[323728429,1714207847808,-645.84820781,0.00011269,2]
[323728430,1714207847817,-500.0,0.00011269,2]
[323728431,1714207847827,-500.0,0.00011269,2]
[323728432,1714207847837,-500.0,0.00011269,2]
[323728433,1714207847848,-500.0,0.00011269,2]
[323728434,1714207847857,-950.91,0.00011269,2]
[323728435,1714207847866,-500.0,0.00011269,2]
[323728436,1714207847875,-500.0,0.00011269,2]
[323728437,1714207847886,-500.0,0.00011269,2]
[323728438,1714207847895,-500.0,0.00011269,2]
[323728439,1714207847904,-500.0,0.00011269,2]
[323728440,1714207847915,-500.0,0.00011269,2]
[323728441,1714207847924,-500.78644919,0.00011269,2]
[323728442,1714207847933,-500.0,0.00011269,2]
[323728443,1714207847942,-231.89703181,0.00011269,2]
[323728444,1714207847950,-500.0,0.00011269,2]
[323728445,1714207847959,-500.0,0.00011269,2]
[323728446,1714207847969,-500.0,0.00011269,2]
[323728447,1714207847977,-330.73777283,0.00011269,2]
[323728448,1714207847986,-500.0,0.00011269,2]
[323728449,1714207847995,-500.0,0.00011269,2]
[323728450,1714207848004,-500.0,0.00011269,2]
[323728451,1714207848012,-500.0,0.00011269,2]
[323728452,1714207848022,-500.0,0.00011269,2]
[323728453,1714207848074,-500.0,0.00011269,2]
[323728454,1714207848082,-500.0,0.00011269,2]
[323728455,1714207848091,-500.0,0.00011269,2]
[323728456,1714207848100,-500.0,0.00011269,2]
[323728457,1714207848109,-1420.78,0.00011269,2]
[323728458,1714207848119,-500.0,0.00011269,2]
[323728459,1714207848129,-500.0,0.00011269,2]
[323728460,1714207848138,-500.0,0.00011269,2]
[323728461,1714207848148,-500.0,0.00011269,2]
[323728462,1714207848159,-500.0,0.00011269,2]
[323728463,1714207848169,-500.0,0.00011269,2]
[323728464,1714207848179,-500.0,0.00011269,2]
[323728465,1714207848189,-500.0,0.00011269,2]
[323728466,1714207848200,-500.0,0.00011269,2]
[323728467,1714207848209,-500.0,0.00011269,2]
[323728468,1714207848220,-500.0,0.00011269,2]
[323728469,1714207848230,-500.0,0.00011269,2]
[323728470,1714207848240,-500.0,0.00011269,2]
[323728471,1714207848250,-500.0,0.00011269,2]
[323728472,1714207848260,-500.0,0.00011269,2]
[323728473,1714207848271,-327.84100072,0.00011269,2]
[323728474,1714207848281,-500.0,0.00011269,2]
[323728475,1714207848292,-500.0,0.00011269,2]
[323728476,1714207848303,-502.43749645,0.00011269,2]
[323728477,1714207848314,-500.0,0.00011269,2]